lending/lending_fUSD_20240710
["ID","MTS","AMOUNT","RATE_DAILY","PERIOD"]
[331598530,1720578653464,-151.0,0.00013882,2]
[331598531,1720578653474,-151.0,0.00013882,2]
[331598532,1720578653484,-955.790937,0.00013882,2]
[331598533,1720578653494,-151.0,0.00013882,2]
[331598534,1720578653503,-955.790937,0.00013882,2]
[331598535,1720578653513,-281.687924,0.00013882,2]
[331598536,1720578653523,-955.790937,0.00013882,2]
[331598537,1720578653532,-353.828945,0.00013882,2]
[331598538,1720578653542,-955.790937,0.00013882,2]
[331598539,1720578653551,-353.828945,0.00013882,2]
[331598540,1720578653561,-955.790937,0.00013882,2]
[331598541,1720578653571,-353.828945,0.00013882,2]
[331598542,1720578653580,-955.790937,0.00013882,2]
[331598543,1720578653590,-353.828945,0.00013882,2]
[331598544,1720578653600,-955.790937,0.00013882,2]
[331598545,1720578653609,-353.828945,0.00013882,2]
[331598546,1720578653618,-353.828945,0.00013882,2]
[331598547,1720578653628,-353.828954,0.00013882,2]
[331598548,1720578653637,-955.790937,0.00013882,2]
[331598549,1720578653646,-955.790937,0.00013882,2]
[331598550,1720578653656,-955.790937,0.00013882,2]
[331598551,1720578653665,-955.790937,0.00013882,2]
[331598552,1720578653675,-955.790937,0.00013882,2]
[331598553,1720578653685,-955.790937,0.00013882,2]
[331598554,1720578653694,-593.47002,0.00013882,2]
[331598555,1720578653704,-955.79093,0.00013882,2]
[331598556,1720578653713,-593.47002,0.00013882,2]
[331598557,1720578653723,-593.47002,0.00013882,2]
[331598558,1720578653733,-593.47002,0.00013882,2]
[331598559,1720578653743,-593.47002,0.00013882,2]
[331598560,1720578653753,-593.47002,0.00013882,2]
[331598561,1720578653764,-593.47002,0.00013882,2]
[331598562,1720578653774,-593.47002,0.00013882,2]
[331598563,1720578653784,-593.47002,0.00013882,2]
[331598564,1720578653794,-593.47002,0.00013882,2]
[331598565,1720578653804,-593.47002,0.00013882,2]
[331598566,1720578653814,-593.47002,0.00013882,2]
[331598567,1720578653823,-593.47002,0.00013882,2]
[331598568,1720578653835,-593.470015,0.00013882,2]
[331598569,1720578653844,-151.0,0.00013882,2]
[331598570,1720578653855,-151.0,0.00013882,2]
[331598571,1720578653865,-151.0,0.00013882,2]
[331598572,1720578653875,-151.0,0.00013882,2]
[331598573,1720578653884,-151.814773,0.00013882,2]
[331598574,1720578653894,-151.0,0.00013882,2]
[331598575,1720578653903,-151.0,0.00013882,2]
[331598576,1720578653913,-151.0,0.00013882,2]
[331598577,1720578653922,-277.83103,0.00013882,2]
[331598578,1720578653933,-500.0,0.00013882,2]
[331598579,1720578653943,-303.652019,0.00013882,2]
[331598580,1720578653952,-303.652019,0.00013882,2]
[331598581,1720578653961,-303.652019,0.00013882,2]
[331598582,1720578653971,-303.652019,0.00013882,2]
[331598583,1720578653981,-288.115848,0.00013882,2]
[331598584,1720578653992,-303.652019,0.00013882,2]
[331598585,1720578654002,-288.115848,0.00013882,2]
[331598586,1720578654012,-303.652019,0.00013882,2]
[331598587,1720578654022,-288.115848,0.00013882,2]
[331598588,1720578654031,-288.115848,0.00013882,2]
[331598589,1720578654041,-288.115848,0.00013882,2]
[331598590,1720578654050,-288.115848,0.00013882,2]
[331598591,1720578654060,-288.115848,0.00013882,2]
[331598592,1720578654070,-220.02435,0.00013882,2]
[331598593,1720578654079,-303.652019,0.00013882,2]
[331598594,1720578654088,-220.02435,0.00013882,2]
[331598595,1720578654098,-303.652019,0.00013882,2]
[331598596,1720578654109,-220.02435,0.00013882,2]
[331598597,1720578654118,-288.115848,0.00013882,2]
[331598598,1720578654128,-220.02435,0.00013882,2]
[331598599,1720578654138,-303.652019,0.00013882,2]
[331598600,1720578654148,-288.115848,0.00013882,2]
[331598601,1720578654157,-831.049779,0.00013882,2]
[331598602,1720578654167,-220.02435,0.00013882,2]
[331598603,1720578654177,-288.115848,0.00013882,2]
[331598604,1720578654186,-220.02435,0.00013882,2]
[331598605,1720578654196,-831.049779,0.00013882,2]
[331598606,1720578654205,-303.652019,0.00013882,2]
[331598607,1720578654215,-288.115848,0.00013882,2]
[331598608,1720578654225,-831.049779,0.00013882,2]
[331598609,1720578654234,-303.652019,0.00013882,2]
[331598610,1720578654244,-831.049779,0.00013882,2]
[331598611,1720578654253,-288.115848,0.00013882,2]
[331598612,1720578654263,-831.049779,0.00013882,2]
[331598613,1720578654273,-303.652025,0.00013882,2]
[331598614,1720578654282,-288.115848,0.00013882,2]
[331598615,1720578654291,-831.049779,0.00013882,2]
[331598616,1720578654300,-288.115852,0.00013882,2]
[331598617,1720578654310,-220.02435,0.00013882,2]
[331598618,1720578654319,-220.02435,0.00013882,2]
[331598619,1720578654329,-220.02435,0.00013882,2]
[331598620,1720578654338,-220.02435,0.00013882,2]
[331598621,1720578654348,-220.02435,0.00013882,2]
[331598622,1720578654358,-220.024348,0.00013882,2]
[331598623,1720578654367,-831.049779,0.00013882,2]
[331598624,1720578654377,-831.049779,0.00013882,2]
[331598625,1720578654386,-831.049779,0.00013882,2]
[331598626,1720578654396,-831.049779,0.00013882,2]
[331598627,1720578654406,-831.049779,0.00013882,2]
[331598628,1720578654415,-831.04978,0.00013882,2]
[331598629,1720578654425,-500.0,0.00013882,5]
[331598630,1720578654434,-151.0,0.00013882,2]
[331598631,1720578654443,-151.0,0.00013882,2]
[331598632,1720578654452,-151.0,0.00013882,2]
[331598633,1720578654462,-151.0,0.00013882,2]
[331598634,1720578654471,-151.0,0.00013882,2]
[331598635,1720578654480,-151.56999,0.00013882,2]
[331598636,1720578654490,-151.0,0.00013882,2]
[331598637,1720578654500,-151.0,0.00013882,2]
[331598638,1720578654509,-151.0,0.00013882,2]
[331598639,1720578654518,-151.0,0.00013882,2]
[331598640,1720578654528,-151.0,0.00013882,2]
[331598641,1720578654538,-151.0,0.00013882,2]
[331598642,1720578654548,-151.0,0.00013882,2]
[331598643,1720578654557,-296.397978,0.00013882,2]
[331598644,1720578654567,-4914.784407,0.00013882,2]
[331598645,1720578654576,-807.0,0.00013883,2]
[331598646,1720578654586,-179.58819484,0.00013883,2]
[331598647,1720578654595,-980.01,0.00013883,2]
[331598648,1720578654605,-500.0,0.00013883,2]
[331598649,1720578654615,-1464.91,0.00013883,2]
[331598650,1720578654624,-500.0,0.00013883,2]
[331598651,1720578654634,-500.0,0.00013883,2]
[331598652,1720578654644,-500.0,0.00013883,2]
[331598653,1720578654654,-500.0,0.00013883,2]
[331598654,1720578654664,-897.43,0.00013883,2]
[331598655,1720578654674,-1140.5,0.00013883,2]
[331598656,1720578654683,-500.0,0.00013883,2]
[331598657,1720578654693,-481.58266036,0.00013883,2]
[331598658,1720578654703,-500.0,0.00013883,2]
[331598659,1720578654712,-3605.84,0.00013883,2]
[331598660,1720578654722,-500.0,0.00013883,2]
[331598661,1720578654732,-500.0,0.00013883,2]
[331598662,1720578654743,-500.0,0.00013883,2]
[331598663,1720578654752,-622.46,0.00013883,2]
[331598664,1720578654762,-739.12,0.00013883,2]
[331598665,1720578654771,-500.0,0.00013883,2]
[331598666,1720578654781,-695.45,0.00013883,2]
[331598667,1720578654790,-500.0,0.00013883,2]
[331598668,1720578654800,-225.15858245,0.00013883,2]
[331598669,1720578654810,-3305.33,0.00013883,2]
[331598670,1720578654819,-695.74,0.00013883,2]
[331598671,1720578654829,-631.74,0.00013883,2]
[331598672,1720578654839,-500.0,0.00013883,2]
[331598673,1720578654849,-500.0,0.00013883,2]
[331598674,1720578654859,-1038.91,0.00013883,2]
[331598675,1720578654868,-1038.91,0.00013883,2]
[331598676,1720578654878,-550.23,0.00013883,2]
[331598677,1720578654887,-500.0,0.00013883,2]
[331598678,1720578654896,-1071.25,0.00013883,2]
[331598679,1720578654906,-1388.45,0.00013883,2]
[331598680,1720578654915,-500.0,0.00013883,2]
[331598681,1720578654925,-500.0,0.00013883,2]
[331598682,1720578654933,-2473.23,0.00013883,2]
[331598683,1720578654943,-500.0,0.00013883,2]
[331598684,1720578654953,-978.08,0.00013883,2]
[331598685,1720578654963,-5532.13,0.00013883,2]
[331598686,1720578654972,-500.0,0.00013883,2]
[331598687,1720578654981,-2866.95,0.00013883,2]
[331598688,1720578654991,-500.0,0.00013883,2]
[331598689,1720578655002,-809.3,0.00013883,2]
[331598690,1720578655012,-500.0,0.00013883,2]
[331598691,1720578655024,-1912.64,0.00013883,2]
[331598692,1720578655034,-505.8,0.00013883,2]
[331598693,1720578655043,-500.0,0.00013883,2]
[331598694,1720578655052,-627.06,0.00013883,2]
[331598695,1720578655062,-500.0,0.00013883,2]
[331598696,1720578655071,-544.95,0.00013883,2]
[331598697,1720578655080,-1862.31,0.00013883,2]
[331598698,1720578655089,-500.0,0.00013883,2]
[331598699,1720578655098,-500.0,0.00013883,2]
[331598700,1720578655108,-500.0,0.00013883,2]
[331598701,1720578655117,-1273.12,0.00013883,2]
[331598702,1720578655128,-500.0,0.00013883,2]
[331598703,1720578655137,-924.69,0.00013883,2]
[331598704,1720578655146,-597.61,0.00013883,2]
[331598705,1720578655155,-500.0,0.00013883,2]
[331598706,1720578655163,-1858.17,0.00013883,2]
[331598707,1720578655172,-500.0,0.00013883,2]
[331598708,1720578655182,-500.0,0.00013883,2]
[331598709,1720578655191,-545.13,0.00013883,2]
[331598710,1720578655200,-500.0,0.00013883,2]
[331598711,1720578655210,-500.0,0.00013883,2]
[331598712,1720578655219,-739.11,0.00013883,2]
[331598713,1720578655229,-500.0,0.00013883,2]
[331598714,1720578655238,-1265.1,0.00013883,2]
[331598715,1720578655249,-664.94,0.00013883,2]
[331598716,1720578655259,-500.0,0.00013883,2]
[331598717,1720578655268,-500.0,0.00013883,2]
[331598718,1720578655278,-575.14,0.00013883,2]
[331598719,1720578655287,-1204.35,0.00013883,2]
[331598720,1720578655297,-500.0,0.00013883,2]
[331598721,1720578655307,-787.9,0.00013883,2]
[331598722,1720578655316,-500.0,0.00013883,2]
[331598723,1720578655326,-1245.72,0.00013883,2]
[331598724,1720578655344,-1304.79,0.00013883,2]
[331598725,1720578655354,-841.57,0.00013883,2]
[331598726,1720578655365,-500.0,0.00013883,2]
[331598727,1720578655374,-5575.91,0.00013883,2]
[331598728,1720578655384,-500.0,0.00013883,2]
[331598729,1720578655393,-1071.56,0.00013883,2]
[331598730,1720578655403,-1264.05,0.00013883,2]
[331598731,1720578655539,-2114.46,0.00013883,2]
[331598732,1720578655588,-500.0,0.00013883,2]
[331598733,1720578655597,-500.0,0.00013883,2]
[331598734,1720578655606,-538.86,0.00013883,2]
[331598735,1720578655615,-500.0,0.00013883,2]
[331598736,1720578655624,-390.10986488,0.00013883,2]
[331598737,1720578655634,-500.0,0.00013883,2]
[331598738,1720578655643,-500.0,0.00013883,2]
[331598739,1720578655654,-500.0,0.00013883,2]
[331598740,1720578655663,-1814.83,0.00013883,2]
[331598741,1720578655672,-1085.35,0.00013883,2]
[331598742,1720578655682,-500.0,0.00013883,2]
[331598743,1720578655691,-216.47877418,0.00013883,2]
[331598744,1720578655700,-1900.38,0.00013883,2]
[331598745,1720578655710,-500.0,0.00013883,2]
[331598746,1720578655719,-500.0,0.00013883,2]
[331598747,1720578655729,-612.29,0.00013883,2]
[331598748,1720578655739,-500.0,0.00013883,2]
[331598749,1720578655749,-3154.74,0.00013883,2]
[331598750,1720578655758,-500.0,0.00013883,2]
[331598751,1720578655768,-500.0,0.00013883,2]
[331598752,1720578655778,-500.0,0.00013883,2]
[331598753,1720578655787,-666.44,0.00013883,2]
[331598754,1720578655797,-1501.48,0.00013883,2]
[331598755,1720578655807,-500.0,0.00013883,2]
[331598756,1720578655816,-500.0,0.00013883,2]
[331598757,1720578655827,-500.0,0.00013883,2]
[331598758,1720578655839,-500.0,0.00013883,2]
[331598759,1720578655854,-500.0,0.00013883,2]
[331598760,1720578655867,-542.0060279,0.00013883,2]
[331598761,1720578655877,-500.0,0.00013883,2]
[331598762,1720578655887,-500.0,0.00013883,2]
[331598763,1720578655896,-500.0,0.00013883,2]
[331598764,1720578655906,-1071.26,0.00013883,2]
[331598765,1720578655916,-980.17,0.00013883,2]
[331598766,1720578655926,-1193.03,0.00013883,2]
[331598767,1720578655936,-1433.96,0.00013883,2]
[331598768,1720578655946,-500.0,0.00013883,2]
[331598769,1720578655956,-1363.71,0.00013883,2]
[331598770,1720578655966,-500.0,0.00013883,2]
[331598771,1720578655975,-500.0,0.00013883,2]
[331598772,1720578655984,-365.4476001,0.00013883,2]
[331598773,1720578655995,-500.0,0.00013883,2]
[331598774,1720578656004,-500.0,0.00013883,2]
[331598775,1720578656014,-1127.54,0.00013883,2]
[331598776,1720578656023,-500.0,0.00013883,2]
[331598777,1720578656033,-745.98,0.00013883,2]
[331598778,1720578656042,-500.0,0.00013883,2]
[331598779,1720578656051,-500.0,0.00013883,2]
[331598780,1720578656060,-1290.64,0.00013883,2]
[331598781,1720578656070,-311.37822703,0.00013883,2]
[331598782,1720578656079,-1292.58,0.00013883,2]
[331598783,1720578656088,-1042.23,0.00013883,2]
[331598784,1720578656097,-1580.24,0.00013883,2]
[331598785,1720578656108,-500.0,0.00013883,2]
[331598786,1720578656117,-1054.05,0.00013883,2]
[331598787,1720578656127,-500.0,0.00013883,2]
[331598788,1720578656136,-500.0,0.00013883,2]
[331598789,1720578656146,-500.0,0.00013883,2]
[331598790,1720578656155,-500.0,0.00013883,2]
[331598791,1720578656164,-500.0,0.00013883,2]
[331598792,1720578656174,-1403.19,0.00013883,2]
[331598793,1720578656184,-1317.14,0.00013883,2]
[331598794,1720578656194,-1317.14,0.00013883,2]
[331598795,1720578656204,-500.0,0.00013883,2]
[331598796,1720578656214,-535.47,0.00013883,2]
[331598797,1720578656224,-971.81,0.00013883,2]
[331598798,1720578656233,-589.11,0.00013883,2]
[331598799,1720578656243,-2193.03,0.00013883,2]
[331598800,1720578656253,-500.0,0.00013883,2]
[331598801,1720578656263,-500.0,0.00013883,2]
[331598802,1720578656272,-754.1,0.00013883,2]
[331598803,1720578656281,-2319.09,0.00013883,2]
[331598804,1720578656291,-500.0,0.00013883,2]
[331598805,1720578656301,-567.35,0.00013883,2]
[331598806,1720578656311,-658.27,0.00013883,2]
[331598807,1720578656320,-502.13,0.00013883,2]
[331598808,1720578656330,-500.0,0.00013883,2]
[331598809,1720578656339,-640.0,0.00013883,2]
[331598810,1720578656349,-1162.5,0.00013883,2]
[331598811,1720578656359,-518.4,0.00013883,2]
[331598812,1720578656369,-500.0,0.00013883,2]
[331598813,1720578656378,-500.0,0.00013883,2]
[331598814,1720578656388,-1309.73,0.00013883,2]
[331598815,1720578656397,-836.41,0.00013883,2]
[331598816,1720578656407,-1305.44,0.00013883,2]
[331598817,1720578656416,-500.0,0.00013883,2]
[331598818,1720578656425,-500.0,0.00013883,2]
[331598819,1720578656435,-3127.47,0.00013883,2]
[331598820,1720578656444,-500.0,0.00013883,2]
[331598821,1720578656453,-867.35,0.00013883,2]
[331598822,1720578656463,-1986.59,0.00013883,2]
[331598823,1720578656472,-500.0,0.00013883,2]
[331598824,1720578656481,-500.0,0.00013883,2]
[331598825,1720578656490,-500.0,0.00013883,2]
[331598826,1720578656501,-1035.93,0.00013883,2]
[331598827,1720578656510,-2586.94,0.00013883,2]
[331598828,1720578656519,-1553.64,0.00013883,2]
[331598829,1720578656528,-500.0,0.00013883,2]
[331598830,1720578656538,-2080.31,0.00013883,2]
[331598831,1720578656547,-737.45,0.00013883,2]
[331598832,1720578656557,-502.59,0.00013883,2]
[331598833,1720578656566,-500.0,0.00013883,2]
[331598834,1720578656576,-2112.92,0.00013883,2]
[331598835,1720578656586,-892.74,0.00013883,2]
[331598836,1720578656595,-500.0,0.00013883,2]
[331598837,1720578656604,-500.0,0.00013883,2]
[331598838,1720578656613,-500.0,0.00013883,2]
[331598839,1720578656622,-855.14,0.00013883,2]
[331598840,1720578656634,-3718.91,0.00013883,2]
[331598841,1720578656644,-740.92,0.00013883,2]
[331598842,1720578656655,-430.17578612,0.00013883,2]
[331598843,1720578656664,-1148.94,0.00013883,2]
[331598844,1720578656675,-500.0,0.00013883,2]
[331598845,1720578656686,-500.0,0.00013883,2]
[331598846,1720578656695,-609.73,0.00013883,2]
[331598847,1720578656707,-651.55,0.00013883,2]
[331598848,1720578656717,-500.0,0.00013883,2]
[331598849,1720578656727,-500.0,0.00013883,2]
[331598850,1720578656738,-1390.96,0.00013883,2]
[331598851,1720578656748,-1390.96,0.00013883,2]
[331598852,1720578656758,-500.0,0.00013883,2]
[331598853,1720578656767,-156.9756342,0.00013883,2]
[331598854,1720578656777,-3990.01,0.00013883,2]
[331598855,1720578656786,-1839.51,0.00013883,2]
[331598856,1720578656796,-4957.69,0.00013883,2]
[331598857,1720578656806,-635.26,0.00013883,2]
[331598858,1720578656816,-500.0,0.00013883,2]
[331598859,1720578656825,-1500.49,0.00013883,2]
[331598860,1720578656835,-500.0,0.00013883,2]
[331598861,1720578656847,-699.28,0.00013883,2]
[331598862,1720578656857,-500.0,0.00013883,2]
[331598863,1720578656867,-709.87,0.00013883,2]
[331598864,1720578656876,-1755.69,0.00013883,2]
[331598865,1720578656886,-500.0,0.00013883,2]
[331598866,1720578656896,-500.0,0.00013883,2]
[331598867,1720578656905,-1145.48,0.00013883,2]
[331598868,1720578656914,-944.07,0.00013883,2]
[331598869,1720578656923,-500.0,0.00013883,2]
[331598870,1720578656933,-780.96,0.00013883,2]
[331598871,1720578656942,-500.0,0.00013883,2]
[331598872,1720578656951,-974.57,0.00013883,2]
[331598873,1720578656961,-500.0,0.00013883,2]
[331598874,1720578656970,-5378.78,0.00013883,2]
[331598875,1720578656979,-973.02,0.00013883,2]
[331598876,1720578656988,-500.0,0.00013883,2]
[331598877,1720578656999,-1639.39,0.00013883,2]
[331598878,1720578657008,-500.0,0.00013883,2]
[331598879,1720578657017,-2173.64,0.00013883,2]
[331598880,1720578657026,-500.0,0.00013883,2]
[331598881,1720578657036,-1556.62,0.00013883,2]
[331598882,1720578657045,-500.0,0.00013883,2]
[331598883,1720578657054,-1651.76,0.00013883,2]
[331598884,1720578657063,-500.0,0.00013883,2]
[331598885,1720578657072,-500.0,0.00013883,2]
[331598886,1720578657081,-500.0,0.00013883,2]
[331598887,1720578657090,-3056.06,0.00013883,2]
[331598888,1720578657099,-3164.82,0.00013883,2]
[331598889,1720578657110,-701.8,0.00013883,2]
[331598890,1720578657120,-1628.14,0.00013883,2]
[331598891,1720578657129,-2832.39,0.00013883,2]
[331598892,1720578657138,-500.0,0.00013883,2]
[331598893,1720578657147,-5259.94,0.00013883,2]
[331598894,1720578657156,-1394.34,0.00013883,2]
[331598895,1720578657166,-500.0,0.00013883,2]
[331598896,1720578657176,-1428.64,0.00013883,2]
[331598897,1720578657186,-500.0,0.00013883,2]
[331598898,1720578657196,-500.0,0.00013883,2]
[331598899,1720578657206,-500.0,0.00013883,2]
[331598900,1720578657216,-1637.49,0.00013883,2]
[331598901,1720578657226,-1289.83,0.00013883,2]
[331598902,1720578657236,-500.0,0.00013883,2]
[331598903,1720578657245,-2993.84,0.00013883,2]
[331598904,1720578657255,-500.0,0.00013883,2]
[331598905,1720578657266,-2832.69,0.00013883,2]
[331598906,1720578657275,-500.0,0.00013883,2]
[331598907,1720578657285,-500.0,0.00013883,2]
[331598908,1720578657294,-3236.91,0.00013883,2]
[331598909,1720578657303,-1916.52,0.00013883,2]
[331598910,1720578657312,-500.0,0.00013883,2]
[331598911,1720578657321,-2241.04,0.00013883,2]
[331598912,1720578657330,-666.78,0.00013883,2]
[331598913,1720578657339,-500.0,0.00013883,2]
[331598914,1720578657348,-2619.25,0.00013883,2]
[331598915,1720578657357,-1165.49,0.00013883,2]
[331598916,1720578657366,-1719.47,0.00013883,2]
[331598917,1720578657375,-551.77553521,0.00013883,2]
[331598918,1720578657384,-1535.65,0.00013883,2]
[331598919,1720578657393,-500.0,0.00013883,2]
[331598920,1720578657402,-1593.91,0.00013883,2]
[331598921,1720578657411,-635.62,0.00013883,2]
[331598922,1720578657420,-500.0,0.00013883,2]
[331598923,1720578657430,-500.0,0.00013883,2]
[331598924,1720578657439,-500.0,0.00013883,2]
[331598925,1720578657448,-500.0,0.00013883,2]
[331598926,1720578657457,-1134.24,0.00013883,2]
[331598927,1720578657466,-385.36625715,0.00013883,2]
[331598928,1720578657476,-2211.54,0.00013883,2]
[331598929,1720578657485,-1623.1,0.00013883,2]
[331598930,1720578657494,-823.14,0.00013883,2]
[331598931,1720578657503,-500.0,0.00013883,2]
[331598932,1720578657512,-3205.17,0.00013883,2]
[331598933,1720578657521,-2181.32,0.00013883,2]
[331598934,1720578657530,-1829.83,0.00013883,2]
[331598935,1720578657540,-500.0,0.00013883,2]
[331598936,1720578657549,-558.55,0.00013883,2]
[331598937,1720578657558,-500.0,0.00013883,2]
[331598938,1720578657567,-3572.72,0.00013883,2]
[331598939,1720578657577,-500.0,0.00013883,2]
[331598940,1720578657586,-500.0,0.00013883,2]
[331598941,1720578657595,-952.39,0.00013883,2]
[331598942,1720578657605,-151.0,0.00013883,2]
[331598943,1720578657614,-500.0,0.00013883,2]
[331598944,1720578657623,-4228.87,0.00013883,2]
[331598945,1720578657633,-500.0,0.00013883,2]
[331598946,1720578657642,-151.0,0.00013883,2]
[331598947,1720578657651,-916.36,0.00013883,2]
[331598948,1720578658067,-151.0,0.00013883,2]
[331598949,1720578658077,-500.0,0.00013883,2]
[331598950,1720578658087,-2319.44,0.00013883,2]
[331598951,1720578658096,-500.0,0.00013883,2]
[331598952,1720578658106,-747.15,0.00013883,2]
[331598953,1720578658116,-500.0,0.00013883,2]
[331598954,1720578658126,-1839.06,0.00013883,2]
[331598955,1720578658136,-500.0,0.00013883,2]
[331598956,1720578658145,-621.69396506,0.00013883,2]
[331598957,1720578658154,-444.24414996,0.00013883,2]
[331598958,1720578658164,-5219.39,0.00013883,2]
[331598959,1720578658174,-931.18,0.00013883,2]
[331598960,1720578658183,-553.43,0.00013883,2]
[331598961,1720578658192,-3728.58,0.00013883,2]
[331598962,1720578658202,-796.99,0.00013883,2]
[331598963,1720578658212,-500.0,0.00013883,2]
[331598964,1720578658224,-5476.03,0.00013883,2]
[331598965,1720578658234,-4577.06,0.00013883,2]
[331598966,1720578658246,-1648.09,0.00013883,2]
[331598967,1720578658258,-500.0,0.00013883,2]
[331598968,1720578658269,-500.0,0.00013883,2]
[331598969,1720578658279,-5498.87,0.00013883,2]
[331598970,1720578658289,-1260.98,0.00013883,2]
[331598971,1720578658299,-500.0,0.00013883,2]
[331598972,1720578658309,-578.76,0.00013883,2]
[331598973,1720578658318,-500.0,0.00013883,2]
[331598974,1720578658328,-500.0,0.00013883,2]
[331598975,1720578658337,-500.0,0.00013883,2]
[331598976,1720578658348,-1323.41,0.00013883,2]
[331598977,1720578658357,-1207.34,0.00013883,2]
[331598978,1720578658367,-1414.19,0.00013883,2]
[331598979,1720578658377,-500.0,0.00013883,2]
[331598980,1720578658387,-500.0,0.00013883,2]
[331598981,1720578658396,-500.0,0.00013883,2]
[331598982,1720578658407,-677.11,0.00013883,2]
[331598983,1720578658417,-522.82,0.00013883,2]
[331598984,1720578658427,-635.38,0.00013883,2]
[331598985,1720578658438,-7415.51,0.00013883,2]
[331598986,1720578658448,-500.0,0.00013883,2]
[331598987,1720578658457,-3610.31,0.00013883,2]
[331598988,1720578658467,-2867.15,0.00013883,2]
[331598989,1720578658476,-16890.74,0.00013883,2]
[331598990,1720578658486,-504.53108581,0.00013883,2]
[331598991,1720578658498,-500.0,0.00013883,2]
[331598992,1720578658507,-500.0,0.00013883,2]
[331598993,1720578658516,-500.0,0.00013883,2]
[331598994,1720578658526,-551.8,0.00013883,2]
[331598995,1720578658535,-3028.89,0.00013883,2]
[331598996,1720578658545,-513.54170942,0.00013883,2]
[331598997,1720578658555,-500.0,0.00013883,2]
[331598998,1720578658564,-10810.32,0.00013883,2]
[331598999,1720578658573,-500.0,0.00013883,2]
[331599000,1720578658583,-500.0,0.00013883,2]
[331599001,1720578658592,-1431.77,0.00013883,2]
[331599002,1720578658601,-2505.49,0.00013883,2]
[331599003,1720578658611,-19271.94,0.00013883,2]
[331599004,1720578658620,-500.0,0.00013883,2]
[331599005,1720578658631,-500.0,0.00013883,2]
[331599006,1720578658640,-500.0,0.00013883,2]
[331599007,1720578658650,-500.0,0.00013883,2]
[331599008,1720578658662,-2780.88,0.00013883,2]
[331599009,1720578658672,-500.0,0.00013883,2]
[331599010,1720578658681,-3006.98,0.00013883,2]
[331599011,1720578658691,-2366.06,0.00013883,2]
[331599012,1720578658700,-6872.83,0.00013883,2]
[331599013,1720578658710,-500.0,0.00013883,2]
[331599014,1720578658719,-990.71,0.00013883,2]
[331599015,1720578658728,-500.0,0.00013883,2]
[331599016,1720578658738,-4065.4,0.00013883,2]
[331599017,1720578658748,-1390.44,0.00013883,2]
[331599018,1720578658760,-1107.57,0.00013883,2]
[331599019,1720578658769,-4468.39,0.00013883,2]
[331599020,1720578658779,-1855.26,0.00013883,2]
[331599021,1720578658789,-585.70985101,0.00013883,2]
[331599022,1720578658798,-882.44,0.00013883,2]
[331599023,1720578658807,-583.01,0.00013883,2]
[331599024,1720578658816,-8876.2,0.00013883,2]
[331599025,1720578658826,-500.0,0.00013883,2]
[331599026,1720578658838,-934.47,0.00013883,2]
[331599027,1720578658850,-2141.19,0.00013883,2]
[331599028,1720578658861,-903.0,0.00013883,2]
[331599029,1720578658870,-5147.73,0.00013883,2]